[Event "Early-Titled-Tuesday-Blitz-January-30-2024"]
[Site "Chess.com"]
[Date "2024.01.30"]
[Round "7"]
[White "EdmundPlayer"]
[Black "tetrix83"]
[Result "1-0"]
[WhiteElo "2305"]
[BlackElo "2546"]
[TimeControl "180+1"]
[EndTime "9:19:45 PST"]
[Termination "EdmundPlayer won on time"]

1. Nc3 {[%clk 0:02:56.4]} 1... c5 {[%clk 0:02:58.6]} 2. e4 {[%clk 0:02:53.4]}
2... Nc6 {[%clk 0:02:58]} 3. Bb5 {[%clk 0:02:52.8]} 3... Nd4 {[%clk 0:02:54.2]}
4. Bc4 {[%clk 0:02:52.5]} 4... e6 {[%clk 0:02:46.3]} 5. Nge2 {[%clk 0:02:52.2]}
5... a6 {[%clk 0:02:33.7]} 6. a4 {[%clk 0:02:45.6]} 6... Nf6 {[%clk 0:02:30.1]}
7. O-O {[%clk 0:02:43.4]} 7... d5 {[%clk 0:02:29.5]} 8. exd5 {[%clk 0:02:42.1]}
8... exd5 {[%clk 0:02:30.4]} 9. Nxd5 {[%clk 0:02:38.1]} 9... Nxd5 {[%clk
0:02:24.6]} 10. Nxd4 {[%clk 0:02:38]} 10... cxd4 {[%clk 0:02:24]} 11. Qh5 {[%clk
0:02:34.7]} 11... Be6 {[%clk 0:02:21.3]} 12. Re1 {[%clk 0:02:34.9]} 12... Nc7
{[%clk 0:00:32.9]} 13. Bxe6 {[%clk 0:02:22.4]} 13... Nxe6 {[%clk 0:00:33.8]} 14.
Rxe6+ {[%clk 0:02:21.5]} 14... Be7 {[%clk 0:00:34.7]} 15. Re1 {[%clk 0:01:24.7]}
15... O-O {[%clk 0:00:35.6]} 16. d3 {[%clk 0:01:24.6]} 16... Rc8 {[%clk
0:00:34.3]} 17. Re2 {[%clk 0:01:16]} 17... Rc5 {[%clk 0:00:33.2]} 18. Qf3 {[%clk
0:01:09.7]} 18... Qd7 {[%clk 0:00:25.8]} 19. b3 {[%clk 0:00:57.3]} 19... Rfc8
{[%clk 0:00:24.7]} 20. Ba3 {[%clk 0:00:37.8]} 20... Rxc2 {[%clk 0:00:22.3]} 21.
Bxe7 {[%clk 0:00:29.5]} 21... Rc1+ {[%clk 0:00:18.8]} 22. Re1 {[%clk 0:00:29.9]}
22... Rxa1 {[%clk 0:00:17.9]} 23. Rxa1 {[%clk 0:00:29.8]} 23... Qxe7 {[%clk
0:00:18.4]} 24. h3 {[%clk 0:00:25.4]} 24... g6 {[%clk 0:00:17.9]} 25. Kf1 {[%clk
0:00:22]} 25... Re8 {[%clk 0:00:15.9]} 26. Rc1 {[%clk 0:00:16.3]} 26... Kg7
{[%clk 0:00:14.5]} 27. Kg1 {[%clk 0:00:13.6]} 27... Qd7 {[%clk 0:00:13.5]} 28.
Rc4 {[%clk 0:00:12]} 28... Re6 {[%clk 0:00:11.7]} 29. Qf4 {[%clk 0:00:09.9]}
29... Rd6 {[%clk 0:00:11.1]} 30. Kh2 {[%clk 0:00:09.5]} 30... h5 {[%clk
0:00:10.1]} 31. Qe5+ {[%clk 0:00:08.7]} 31... Kg8 {[%clk 0:00:09.3]} 32. Rc5
{[%clk 0:00:06.2]} 32... Re6 {[%clk 0:00:06.5]} 33. Qf4 {[%clk 0:00:04.9]} 33...
Rd6 {[%clk 0:00:05.4]} 34. Qe5 {[%clk 0:00:04.4]} 34... Re6 {[%clk 0:00:03.6]}
35. Qf4 {[%clk 0:00:04.2]} 35... Qd6 {[%clk 0:00:03.4]} 36. Qxd6 {[%clk
0:00:04]} 36... Rxd6 {[%clk 0:00:04.3]} 37. Rc4 {[%clk 0:00:03.5]} 37... Kg7
{[%clk 0:00:02.1]} 38. Rc7 {[%clk 0:00:03.8]} 38... b6 {[%clk 0:00:01.8]} 39.
Kg3 {[%clk 0:00:03.2]} 39... a5 {[%clk 0:00:02.7]} 40. Rc4 {[%clk 0:00:03]}
40... Kf6 {[%clk 0:00:03.5]} 41. Kf4 {[%clk 0:00:03.5]} 41... Ke6 {[%clk
0:00:03]} 42. Ke4 {[%clk 0:00:04]} 42... f5+ {[%clk 0:00:02.9]} 43. Kf4 {[%clk
0:00:04.6]} 43... Kd5 {[%clk 0:00:03.4]} 44. Kg5 {[%clk 0:00:04.6]} 44... Re6
{[%clk 0:00:03.4]} 45. Rc7 {[%clk 0:00:04.3]} 45... Re2 {[%clk 0:00:03]} 46.
Kxg6 {[%clk 0:00:04]} 46... Rxf2 {[%clk 0:00:02.9]} 47. Rf7 {[%clk 0:00:03.1]}
47... Rxg2+ {[%clk 0:00:02]} 48. Kxh5 {[%clk 0:00:03.7]} 48... Rg3 {[%clk
0:00:02.1]} 49. h4 {[%clk 0:00:03.9]} 1-0

[Event "Early-Titled-Tuesday-Blitz-January-30-2024"]
[Site "Chess.com"]
[Date "2024.01.30"]
[Round "7"]
[White "BogdanDeac"]
[Black "kleinebeer98"]
[Result "1-0"]
[WhiteElo "3086"]
[BlackElo "2858"]
[TimeControl "180+1"]
[EndTime "9:19:46 PST"]
[Termination "BogdanDeac won by resignation"]

1. d4 {[%clk 0:03:00.9]} 1... Nf6 {[%clk 0:03:00.7]} 2. Nf3 {[%clk 0:03:00.7]}
2... Nc6 {[%clk 0:02:59.4]} 3. d5 {[%clk 0:02:59.4]} 3... Nb4 {[%clk 0:02:59.7]}
4. c4 {[%clk 0:02:56.8]} 4... e6 {[%clk 0:03:00.3]} 5. Nc3 {[%clk 0:02:55.2]}
5... c6 {[%clk 0:02:59.7]} 6. a3 {[%clk 0:02:53.3]} 6... Na6 {[%clk 0:02:59.9]}
7. e4 {[%clk 0:02:53.6]} 7... cxd5 {[%clk 0:02:58.1]} 8. cxd5 {[%clk 0:02:49.3]}
8... Nc5 {[%clk 0:02:58.6]} 9. Bd3 {[%clk 0:02:31]} 9... exd5 {[%clk 0:02:56.1]}
10. e5 {[%clk 0:02:30.3]} 10... Nfe4 {[%clk 0:02:55.7]} 11. Nxd5 {[%clk
0:02:22.9]} 11... Nxd3+ {[%clk 0:02:55.6]} 12. Qxd3 {[%clk 0:02:22.2]} 12... Nc5
{[%clk 0:02:56.5]} 13. Qd1 {[%clk 0:02:04.8]} 13... Be7 {[%clk 0:02:50.9]} 14.
O-O {[%clk 0:02:00.3]} 14... O-O {[%clk 0:02:51.2]} 15. Re1 {[%clk 0:01:54.7]}
15... b6 {[%clk 0:02:51.1]} 16. Nxe7+ {[%clk 0:01:50.1]} 16... Qxe7 {[%clk
0:02:51.4]} 17. Bg5 {[%clk 0:01:50.6]} 17... Qe6 {[%clk 0:02:50.9]} 18. b4
{[%clk 0:01:44.5]} 18... Na6 {[%clk 0:02:39.4]} 19. Qd3 {[%clk 0:01:24]} 19...
Bb7 {[%clk 0:02:39.1]} 20. Rad1 {[%clk 0:01:23.5]} 20... Nc7 {[%clk 0:02:28.7]}
21. h3 {[%clk 0:01:03.2]} 21... Nd5 {[%clk 0:02:23.9]} 22. Nd4 {[%clk
0:00:56.2]} 22... Qg6 {[%clk 0:02:23.9]} 23. Qxg6 {[%clk 0:00:39.7]} 23... hxg6
{[%clk 0:02:24.8]} 24. Nb5 {[%clk 0:00:39.9]} 24... Bc6 {[%clk 0:02:24]} 25. Nd6
{[%clk 0:00:29.6]} 25... a6 {[%clk 0:02:23.7]} 26. Rd3 {[%clk 0:00:25.4]} 26...
f6 {[%clk 0:02:22.4]} 27. exf6 {[%clk 0:00:23.9]} 27... gxf6 {[%clk 0:02:23.3]}
28. Bh6 {[%clk 0:00:23.8]} 28... Rfd8 {[%clk 0:02:20.7]} 29. Red1 {[%clk
0:00:18.9]} 29... Nc7 {[%clk 0:02:20.1]} 30. Be3 {[%clk 0:00:17.6]} 30... Rab8
{[%clk 0:02:19.8]} 31. Bd4 {[%clk 0:00:15.8]} 31... Nd5 {[%clk 0:02:20.3]} 32.
Bb2 {[%clk 0:00:15]} 32... Nf4 {[%clk 0:02:20.5]} 33. Re3 {[%clk 0:00:08.7]}
33... Nxg2 {[%clk 0:02:19.3]} 34. Re7 {[%clk 0:00:07.3]} 34... Rf8 {[%clk
0:02:17.5]} 35. Rd4 {[%clk 0:00:05.6]} 35... g5 {[%clk 0:02:17.2]} 36. Rg4
{[%clk 0:00:03.4]} 36... Nh4 {[%clk 0:02:18]} 37. f4 {[%clk 0:00:02.9]} 37...
Ng6 {[%clk 0:02:06.1]} 38. Rxg5 {[%clk 0:00:03.3]} 38... fxg5 {[%clk 0:02:03.2]}
39. Rg7+ {[%clk 0:00:03.8]} 39... Kh8 {[%clk 0:02:03.9]} 40. Rxd7+ {[%clk
0:00:04.1]} 40... Kg8 {[%clk 0:02:02.4]} 41. Rg7+ {[%clk 0:00:04.6]} 41... Kh8
{[%clk 0:02:03.2]} 42. f5 {[%clk 0:00:05]} 42... Nf4 {[%clk 0:01:58.4]} 43. Rc7+
{[%clk 0:00:04.8]} 43... Kg8 {[%clk 0:01:58.8]} 44. Rg7+ {[%clk 0:00:05.4]}
44... Kh8 {[%clk 0:01:59.6]} 45. Kh2 {[%clk 0:00:05.5]} 45... Rbd8 {[%clk
0:01:53.7]} 46. Rd7+ {[%clk 0:00:05.2]} 46... Kg8 {[%clk 0:01:53.4]} 47. Rg7+
{[%clk 0:00:05.6]} 47... Kh8 {[%clk 0:01:54]} 48. Rc7+ {[%clk 0:00:06.1]} 48...
Kg8 {[%clk 0:01:54.3]} 49. Rxc6 {[%clk 0:00:06.7]} 49... Rd7 {[%clk 0:01:50.4]}
50. Kg3 {[%clk 0:00:06.6]} 50... Nh5+ {[%clk 0:01:44.2]} 51. Kf3 {[%clk
0:00:05.5]} 51... Rfd8 {[%clk 0:01:40.1]} 52. Be5 {[%clk 0:00:05]} 52... Re7
{[%clk 0:01:29.8]} 53. Bd4 {[%clk 0:00:05.4]} 53... Red7 {[%clk 0:01:21.9]} 54.
Be5 {[%clk 0:00:05.4]} 54... Re7 {[%clk 0:01:22.6]} 55. Bc3 {[%clk 0:00:05.4]}
55... Red7 {[%clk 0:01:17.3]} 56. Ne4 {[%clk 0:00:05.7]} 56... Rd3+ {[%clk
0:01:10.3]} 57. Kg4 {[%clk 0:00:05.5]} 57... Nf4 {[%clk 0:01:11.2]} 58. Nxg5
{[%clk 0:00:05]} 58... Ne2 {[%clk 0:01:09.9]} 59. Rg6+ {[%clk 0:00:04.9]} 59...
Kf8 {[%clk 0:01:10.2]} 60. Ne6+ {[%clk 0:00:05.3]} 60... Kf7 {[%clk 0:01:07.1]}
61. Rg7+ {[%clk 0:00:05.1]} 61... Ke8 {[%clk 0:01:07.8]} 62. Bf6 {[%clk
0:00:05.3]} 62... Rg3+ {[%clk 0:01:06.9]} 63. Kh4 {[%clk 0:00:05.7]} 63... Rxg7
{[%clk 0:01:01.8]} 64. Nxg7+ {[%clk 0:00:05.9]} 64... Kd7 {[%clk 0:01:01.6]} 65.
Bxd8 {[%clk 0:00:06.4]} 65... Kxd8 {[%clk 0:01:02.3]} 66. Kg5 {[%clk 0:00:06.6]}
66... Ke7 {[%clk 0:01:03]} 67. Kh4 {[%clk 0:00:06.6]} 67... Kf6 {[%clk
0:01:03.4]} 68. Nh5+ {[%clk 0:00:06.1]} 68... Kxf5 {[%clk 0:01:04]} 69. Ng3+
{[%clk 0:00:06.5]} 69... Nxg3 {[%clk 0:01:02.5]} 70. Kxg3 {[%clk 0:00:06.9]}
70... a5 {[%clk 0:01:01]} 71. h4 {[%clk 0:00:07.3]} 71... axb4 {[%clk
0:00:58.6]} 72. axb4 {[%clk 0:00:08.2]} 72... b5 {[%clk 0:00:55.9]} 73. Kf3
{[%clk 0:00:08.5]} 73... Kg6 {[%clk 0:00:54.2]} 74. Ke4 {[%clk 0:00:08.8]} 74...
Kh5 {[%clk 0:00:55]} 75. Kd5 {[%clk 0:00:09.7]} 75... Kxh4 {[%clk 0:00:55.9]}
76. Kc5 {[%clk 0:00:10.5]} 76... Kg5 {[%clk 0:00:56.8]} 77. Kxb5 {[%clk
0:00:11.4]} 77... Kf6 {[%clk 0:00:57.5]} 78. Kc6 {[%clk 0:00:12.1]} 78... Ke7
{[%clk 0:00:58.4]} 79. Kc7 {[%clk 0:00:12.4]} 1-0

[Event "Early-Titled-Tuesday-Blitz-January-30-2024"]
[Site "Chess.com"]
[Date "2024.01.30"]
[Round "7"]
[White "Happy1712Drummer"]
[Black "Chesstiger64"]
[Result "1-0"]
[WhiteElo "2422"]
[BlackElo "2220"]
[TimeControl "180+1"]
[EndTime "9:19:47 PST"]
[Termination "Happy1712Drummer won by checkmate"]

1. e4 {[%clk 0:03:00.9]} 1... e6 {[%clk 0:02:54]} 2. d4 {[%clk 0:03:00.4]} 2...
d5 {[%clk 0:02:54.5]} 3. e5 {[%clk 0:03:01]} 3... c5 {[%clk 0:02:54.1]} 4. c3
{[%clk 0:03:01.7]} 4... Bd7 {[%clk 0:02:54.6]} 5. Nf3 {[%clk 0:03:02.3]} 5...
Nc6 {[%clk 0:02:55]} 6. Be2 {[%clk 0:02:59.7]} 6... cxd4 {[%clk 0:02:54.8]} 7.
cxd4 {[%clk 0:02:58.8]} 7... Nge7 {[%clk 0:02:55.1]} 8. Na3 {[%clk 0:02:58.4]}
8... Nf5 {[%clk 0:02:54.5]} 9. Nc2 {[%clk 0:02:58.8]} 9... h5 {[%clk 0:02:49.5]}
10. O-O {[%clk 0:02:51.2]} 10... h4 {[%clk 0:02:49.3]} 11. h3 {[%clk 0:02:48.5]}
11... Be7 {[%clk 0:02:45.9]} 12. a3 {[%clk 0:02:39.3]} 12... a5 {[%clk
0:02:37.2]} 13. Bd3 {[%clk 0:02:23.3]} 13... g6 {[%clk 0:02:34.5]} 14. Rb1
{[%clk 0:02:00.5]} 14... Qb6 {[%clk 0:02:31]} 15. b4 {[%clk 0:01:41.6]} 15...
axb4 {[%clk 0:02:29.3]} 16. axb4 {[%clk 0:01:41.6]} 16... Ra2 {[%clk 0:02:02.5]}
17. b5 {[%clk 0:01:23.6]} 17... Na5 {[%clk 0:01:59]} 18. Bd2 {[%clk 0:01:20]}
18... Nc4 {[%clk 0:01:52.5]} 19. Bb4 {[%clk 0:01:17.6]} 19... Bxb5 {[%clk
0:01:37.8]} 20. Bxe7 {[%clk 0:01:14.9]} 20... Kxe7 {[%clk 0:01:37.9]} 21. Qe1
{[%clk 0:00:54.3]} 21... Kd7 {[%clk 0:01:01.8]} 22. Qb4 {[%clk 0:00:34.6]} 22...
Kc6 {[%clk 0:01:01.7]} 23. Bxc4 {[%clk 0:00:26.5]} 23... dxc4 {[%clk 0:00:55.4]}
24. Na3 {[%clk 0:00:26.7]} 24... Rxa3 {[%clk 0:00:47.1]} 25. Qxa3 {[%clk
0:00:27.6]} 25... Rd8 {[%clk 0:00:38.4]} 26. Rfc1 {[%clk 0:00:25.2]} 26... Rd5
{[%clk 0:00:36.4]} 27. Qb4 {[%clk 0:00:17.8]} 27... Kd7 {[%clk 0:00:34.7]} 28.
Qf8 {[%clk 0:00:13.7]} 28... Qc7 {[%clk 0:00:19.3]} 29. Qxf7+ {[%clk 0:00:13.9]}
29... Kc8 {[%clk 0:00:19.5]} 30. Qxe6+ {[%clk 0:00:11.9]} 30... Rd7 {[%clk
0:00:17.1]} 31. Rxb5 {[%clk 0:00:10.9]} 31... Nxd4 {[%clk 0:00:17.1]} 32. Qg8+
{[%clk 0:00:05.3]} 32... Rd8 {[%clk 0:00:16.6]} 33. Qxc4 {[%clk 0:00:05]} 33...
Ne2+ {[%clk 0:00:15]} 34. Kh2 {[%clk 0:00:03.7]} 34... Nxc1 {[%clk 0:00:15.1]}
35. Rc5 {[%clk 0:00:03.4]} 35... Rd7 {[%clk 0:00:11.3]} 36. Rxc7+ {[%clk
0:00:03.8]} 36... Rxc7 {[%clk 0:00:11.2]} 37. Qg8+ {[%clk 0:00:04.7]} 37... Kd7
{[%clk 0:00:11.2]} 38. Qg7+ {[%clk 0:00:05.4]} 38... Kc6 {[%clk 0:00:11.2]} 39.
Qxg6+ {[%clk 0:00:06]} 39... Kb5 {[%clk 0:00:11.4]} 40. Qd6 {[%clk 0:00:06.6]}
40... Rc6 {[%clk 0:00:11]} 41. Qd5+ {[%clk 0:00:07]} 41... Rc5 {[%clk
0:00:09.9]} 42. Qxb7+ {[%clk 0:00:07.3]} 42... Kc4 {[%clk 0:00:10.2]} 43. Qe4+
{[%clk 0:00:08.1]} 43... Kb3 {[%clk 0:00:09.5]} 44. Qb1+ {[%clk 0:00:07.8]}
44... Ka4 {[%clk 0:00:08.2]} 45. e6 {[%clk 0:00:06.1]} 45... Nb3 {[%clk
0:00:08.1]} 46. e7 {[%clk 0:00:06.3]} 46... Rc8 {[%clk 0:00:08.2]} 47. Qf5
{[%clk 0:00:06.3]} 47... Re8 {[%clk 0:00:08.1]} 48. Qd7+ {[%clk 0:00:06.8]}
48... Kb4 {[%clk 0:00:06.1]} 49. Qxe8 {[%clk 0:00:07.7]} 49... Nd4 {[%clk
0:00:06.7]} 50. Qb8+ {[%clk 0:00:08]} 50... Ka5 {[%clk 0:00:06.2]} 51. e8=Q
{[%clk 0:00:08.9]} 51... Ka6 {[%clk 0:00:06.1]} 52. Qa4# {[%clk 0:00:09.3]} 1-0

[Event "Early-Titled-Tuesday-Blitz-January-30-2024"]
[Site "Chess.com"]
[Date "2024.01.30"]
[Round "7"]
[White "sergeikim"]
[Black "DmitriiZakurdaev"]
[Result "0-1"]
[WhiteElo "2580"]
[BlackElo "2452"]
[TimeControl "180+1"]
[EndTime "9:19:48 PST"]
[Termination "DmitriiZakurdaev won by resignation"]

1. d4 {[%clk 0:03:00.9]} 1... d5 {[%clk 0:02:58.2]} 2. c4 {[%clk 0:03:00.9]}
2... e6 {[%clk 0:02:58.4]} 3. Nc3 {[%clk 0:03:00.9]} 3... Nf6 {[%clk 0:02:58.6]}
4. Nf3 {[%clk 0:03:00.9]} 4... Be7 {[%clk 0:02:58.7]} 5. Bf4 {[%clk 0:03:00.8]}
5... O-O {[%clk 0:02:58.7]} 6. e3 {[%clk 0:03:00.9]} 6... Nbd7 {[%clk
0:02:59.1]} 7. c5 {[%clk 0:03:01]} 7... Nh5 {[%clk 0:02:59.3]} 8. Be5 {[%clk
0:03:00.7]} 8... Nxe5 {[%clk 0:02:57.2]} 9. Nxe5 {[%clk 0:03:00.8]} 9... Nf6
{[%clk 0:02:56.6]} 10. Bd3 {[%clk 0:02:59.3]} 10... Nd7 {[%clk 0:02:52.8]} 11.
Nf3 {[%clk 0:02:51.6]} 11... b6 {[%clk 0:02:45.7]} 12. b4 {[%clk 0:02:39]} 12...
a5 {[%clk 0:02:43.6]} 13. a3 {[%clk 0:02:39.3]} 13... c6 {[%clk 0:02:40.2]} 14.
O-O {[%clk 0:02:36.9]} 14... h6 {[%clk 0:02:36.1]} 15. Qe2 {[%clk 0:02:33.4]}
15... Nf6 {[%clk 0:02:22.6]} 16. Ne5 {[%clk 0:02:30.9]} 16... Bb7 {[%clk
0:02:22.3]} 17. b5 {[%clk 0:02:26.9]} 17... bxc5 {[%clk 0:02:09.6]} 18. bxc6
{[%clk 0:02:22.4]} 18... Bc8 {[%clk 0:02:08]} 19. Nb5 {[%clk 0:02:12.3]} 19...
c4 {[%clk 0:02:03.7]} 20. Bc2 {[%clk 0:02:11.8]} 20... Ba6 {[%clk 0:01:40.9]}
21. Ba4 {[%clk 0:02:05.1]} 21... Ne4 {[%clk 0:01:32.1]} 22. Qc2 {[%clk 0:01:58]}
22... Bd6 {[%clk 0:01:26.3]} 23. Nd7 {[%clk 0:01:51.7]} 23... Bxb5 {[%clk
0:01:12.2]} 24. Bxb5 {[%clk 0:01:49.8]} 24... Re8 {[%clk 0:01:01.9]} 25. f3
{[%clk 0:01:30.3]} 25... Nf6 {[%clk 0:00:50.7]} 26. e4 {[%clk 0:01:04.2]} 26...
Nxd7 {[%clk 0:00:25.3]} 27. cxd7 {[%clk 0:01:02.2]} 27... Re7 {[%clk 0:00:24.8]}
28. e5 {[%clk 0:00:59.6]} 28... Bc7 {[%clk 0:00:24.6]} 29. a4 {[%clk 0:00:58]}
29... Rb8 {[%clk 0:00:21]} 30. Rab1 {[%clk 0:00:55]} 30... Bb6 {[%clk
0:00:21.2]} 31. Qc3 {[%clk 0:00:50.6]} 31... Qc7 {[%clk 0:00:21.2]} 32. f4
{[%clk 0:00:48.8]} 32... Qa7 {[%clk 0:00:21.1]} 33. Rfd1 {[%clk 0:00:47.4]}
33... Rd8 {[%clk 0:00:19.5]} 34. Kh1 {[%clk 0:00:46.5]} 34... g6 {[%clk
0:00:18.5]} 35. Qe3 {[%clk 0:00:37]} 35... Kh7 {[%clk 0:00:16.2]} 36. Rd2 {[%clk
0:00:29.9]} 36... Qc7 {[%clk 0:00:15.7]} 37. Rc1 {[%clk 0:00:27.8]} 37... Ba7
{[%clk 0:00:15.1]} 38. Rf2 {[%clk 0:00:25.6]} 38... Rb8 {[%clk 0:00:14.8]} 39.
Rf3 {[%clk 0:00:24.3]} 39... Rxd7 {[%clk 0:00:14.7]} 40. Bxd7 {[%clk 0:00:21.9]}
40... Qxd7 {[%clk 0:00:15.6]} 41. Rh3 {[%clk 0:00:19.9]} 41... Rb3 {[%clk
0:00:12.3]} 42. Qf2 {[%clk 0:00:19.1]} 42... Qxa4 {[%clk 0:00:11.6]} 43. Rxb3
{[%clk 0:00:14]} 43... Qxb3 {[%clk 0:00:12.5]} 44. h3 {[%clk 0:00:08.5]} 44...
a4 {[%clk 0:00:09.4]} 45. Qc2 {[%clk 0:00:08.3]} 45... a3 {[%clk 0:00:08.8]} 46.
Qd2 {[%clk 0:00:07.8]} 46... a2 {[%clk 0:00:06]} 47. Ra1 {[%clk 0:00:07.7]}
47... Qb1+ {[%clk 0:00:06]} 48. Qd1 {[%clk 0:00:07.2]} 48... Qxd1+ {[%clk
0:00:05.3]} 49. Rxd1 {[%clk 0:00:07.7]} 49... Bxd4 {[%clk 0:00:06.1]} 50. Rxd4
{[%clk 0:00:07.1]} 50... a1=Q+ {[%clk 0:00:07]} 0-1

[Event "Early-Titled-Tuesday-Blitz-January-30-2024"]
[Site "Chess.com"]
[Date "2024.01.30"]
[Round "7"]
[White "Dinosaurio_1975"]
[Black "Cheer_Down"]
[Result "0-1"]
[WhiteElo "2587"]
[BlackElo "2475"]
[TimeControl "180+1"]
[EndTime "9:19:50 PST"]
[Termination "Cheer_Down won on time"]

1. c4 {[%clk 0:03:00.9]} 1... e6 {[%clk 0:02:58.2]} 2. Nc3 {[%clk 0:03:01.1]}
2... d5 {[%clk 0:02:58.4]} 3. e3 {[%clk 0:02:54.6]} 3... dxc4 {[%clk 0:02:57.5]}
4. Bxc4 {[%clk 0:02:53.9]} 4... a6 {[%clk 0:02:57.7]} 5. d4 {[%clk 0:02:52.2]}
5... Nf6 {[%clk 0:02:56]} 6. a4 {[%clk 0:02:51.2]} 6... c5 {[%clk 0:02:53.9]} 7.
Nf3 {[%clk 0:02:50.3]} 7... Nc6 {[%clk 0:02:53.6]} 8. O-O {[%clk 0:02:49.9]}
8... cxd4 {[%clk 0:02:53]} 9. exd4 {[%clk 0:02:49.5]} 9... Be7 {[%clk
0:02:41.1]} 10. Qe2 {[%clk 0:02:49.1]} 10... O-O {[%clk 0:02:36.4]} 11. Rd1
{[%clk 0:02:43.2]} 11... Nd5 {[%clk 0:02:35.8]} 12. Ne5 {[%clk 0:02:41.2]} 12...
Bf6 {[%clk 0:02:18.7]} 13. Qh5 {[%clk 0:01:32.8]} 13... g6 {[%clk 0:02:09.2]}
14. Qe2 {[%clk 0:01:31]} 14... Bg7 {[%clk 0:02:02.2]} 15. Ne4 {[%clk 0:01:25.7]}
15... Nxe5 {[%clk 0:01:33.9]} 16. dxe5 {[%clk 0:01:24.5]} 16... Bxe5 {[%clk
0:01:33.8]} 17. Bg5 {[%clk 0:01:24.9]} 17... f6 {[%clk 0:01:05.3]} 18. Bh6
{[%clk 0:01:23.9]} 18... Rf7 {[%clk 0:01:03.8]} 19. Nc3 {[%clk 0:01:19]} 19...
Rd7 {[%clk 0:00:57.8]} 20. Qf3 {[%clk 0:00:41.6]} 20... Nc7 {[%clk 0:00:21.6]}
21. Rxd7 {[%clk 0:00:39.5]} 21... Qxd7 {[%clk 0:00:22]} 22. Rd1 {[%clk
0:00:38.8]} 22... Qe7 {[%clk 0:00:19.4]} 23. h4 {[%clk 0:00:33.9]} 23... Rb8
{[%clk 0:00:15.8]} 24. h5 {[%clk 0:00:33.8]} 24... b5 {[%clk 0:00:15.7]} 25.
axb5 {[%clk 0:00:32.2]} 25... axb5 {[%clk 0:00:16.1]} 26. Bd3 {[%clk 0:00:31.3]}
26... Bb7 {[%clk 0:00:15]} 27. Qe2 {[%clk 0:00:28.8]} 27... g5 {[%clk
0:00:12.9]} 28. Bxg5 {[%clk 0:00:26.6]} 28... Nd5 {[%clk 0:00:11.3]} 29. Nxd5
{[%clk 0:00:25.5]} 29... Bxd5 {[%clk 0:00:11.4]} 30. Qxe5 {[%clk 0:00:24.8]}
30... fxg5 {[%clk 0:00:07.3]} 31. h6 {[%clk 0:00:24.7]} 31... Rf8 {[%clk
0:00:06.3]} 32. Bc2 {[%clk 0:00:13.5]} 32... Qf6 {[%clk 0:00:05.7]} 33. Qxf6
{[%clk 0:00:13]} 33... Rxf6 {[%clk 0:00:05.9]} 34. Bd3 {[%clk 0:00:12.9]} 34...
b4 {[%clk 0:00:05.6]} 35. Rc1 {[%clk 0:00:07.7]} 35... Rxh6 {[%clk 0:00:05.4]}
36. Rc8+ {[%clk 0:00:08.2]} 36... Kg7 {[%clk 0:00:05.9]} 37. Rc7+ {[%clk
0:00:09.1]} 37... Kf6 {[%clk 0:00:04.8]} 38. Bxh7 {[%clk 0:00:08.4]} 38... Rh4
{[%clk 0:00:04.5]} 39. Bd3 {[%clk 0:00:08.4]} 39... Rd4 {[%clk 0:00:04.5]} 40.
Bb5 {[%clk 0:00:02.1]} 40... Rd2 {[%clk 0:00:04.2]} 41. Be8 {[%clk 0:00:02]}
41... Rxb2 {[%clk 0:00:03.7]} 42. Rf7+ {[%clk 0:00:02.9]} 42... Ke5 {[%clk
0:00:03.9]} 43. Rg7 {[%clk 0:00:03]} 43... Kf4 {[%clk 0:00:03.8]} 44. g3+ {[%clk
0:00:02.6]} 44... Kf5 {[%clk 0:00:03]} 45. Rf7+ {[%clk 0:00:02]} 45... Ke5
{[%clk 0:00:03.2]} 46. Rg7 {[%clk 0:00:02.4]} 46... Rb1+ {[%clk 0:00:03.5]} 0-1

[Event "Early-Titled-Tuesday-Blitz-January-30-2024"]
[Site "Chess.com"]
[Date "2024.01.30"]
[Round "7"]
[White "claudyna16"]
[Black "cristianserban1"]
[Result "0-1"]
[WhiteElo "2380"]
[BlackElo "2582"]
[TimeControl "180+1"]
[EndTime "9:19:52 PST"]
[Termination "cristianserban1 won by resignation"]

1. c4 {[%clk 0:03:00.9]} 1... g6 {[%clk 0:03:00.9]} 2. g3 {[%clk 0:03:00.2]}
2... Bg7 {[%clk 0:03:01.5]} 3. Bg2 {[%clk 0:03:00.8]} 3... d6 {[%clk 0:03:02]}
4. Nc3 {[%clk 0:03:01.1]} 4... Nc6 {[%clk 0:03:02.4]} 5. e3 {[%clk 0:03:01.7]}
5... e5 {[%clk 0:03:01.1]} 6. Nge2 {[%clk 0:03:01.9]} 6... Bg4 {[%clk
0:02:56.7]} 7. h3 {[%clk 0:03:00.9]} 7... Be6 {[%clk 0:02:57.3]} 8. Nd5 {[%clk
0:03:00.5]} 8... Nge7 {[%clk 0:02:50.5]} 9. O-O {[%clk 0:02:59.1]} 9... O-O
{[%clk 0:02:50.5]} 10. Rb1 {[%clk 0:02:51.9]} 10... a5 {[%clk 0:02:50.6]} 11. a3
{[%clk 0:02:50.3]} 11... Qd7 {[%clk 0:02:41.2]} 12. Kh2 {[%clk 0:02:49.8]} 12...
Nd8 {[%clk 0:02:40.3]} 13. b4 {[%clk 0:02:39.8]} 13... axb4 {[%clk 0:02:40.1]}
14. axb4 {[%clk 0:02:40.7]} 14... Rb8 {[%clk 0:02:22.5]} 15. b5 {[%clk
0:02:36.8]} 15... f5 {[%clk 0:02:14.4]} 16. d3 {[%clk 0:02:31.9]} 16... Nf7
{[%clk 0:02:06]} 17. Ba3 {[%clk 0:02:20.9]} 17... e4 {[%clk 0:01:49]} 18. Nef4
{[%clk 0:01:45.6]} 18... Bxd5 {[%clk 0:01:42]} 19. cxd5 {[%clk 0:01:43.7]} 19...
exd3 {[%clk 0:01:04.6]} 20. Qxd3 {[%clk 0:01:21]} 20... Rfc8 {[%clk 0:01:04.6]}
21. Ne6 {[%clk 0:01:19]} 21... Bf6 {[%clk 0:01:04.7]} 22. f4 {[%clk 0:01:11.4]}
22... c6 {[%clk 0:00:59]} 23. e4 {[%clk 0:00:37.8]} 23... fxe4 {[%clk
0:00:55.3]} 24. Bxe4 {[%clk 0:00:35.5]} 24... cxd5 {[%clk 0:00:53.3]} 25. Bxd5
{[%clk 0:00:36.1]} 25... Nxd5 {[%clk 0:00:51.3]} 26. Qxd5 {[%clk 0:00:37]} 26...
Rc2+ {[%clk 0:00:49.7]} 27. Kh1 {[%clk 0:00:36.3]} 27... Ra8 {[%clk 0:00:27.6]}
28. Rb3 {[%clk 0:00:25.5]} 28... Re2 {[%clk 0:00:25.5]} 29. f5 {[%clk
0:00:19.7]} 29... gxf5 {[%clk 0:00:25.1]} 30. Nf4 {[%clk 0:00:18.1]} 30... Re5
{[%clk 0:00:25.6]} 31. Qd3 {[%clk 0:00:12.7]} 31... Re4 {[%clk 0:00:18.8]} 32.
Bb2 {[%clk 0:00:12.4]} 32... Bxb2 {[%clk 0:00:18.2]} 33. Rxb2 {[%clk 0:00:13.3]}
33... Ne5 {[%clk 0:00:17.1]} 34. Qd5+ {[%clk 0:00:12.6]} 34... Qf7 {[%clk
0:00:16.8]} 35. Qxd6 {[%clk 0:00:11.4]} 35... Re8 {[%clk 0:00:11.1]} 36. Nd5
{[%clk 0:00:11.4]} 36... Nd7 {[%clk 0:00:10]} 37. Rbf2 {[%clk 0:00:07.2]} 37...
R4e5 {[%clk 0:00:09.1]} 38. Nf4 {[%clk 0:00:07]} 38... Rxb5 {[%clk 0:00:08.5]}
39. h4 {[%clk 0:00:05.4]} 39... Ne5 {[%clk 0:00:07]} 40. Kg2 {[%clk 0:00:03.8]}
40... Ng4 {[%clk 0:00:07.4]} 41. Rf3 {[%clk 0:00:03.6]} 41... Ne3+ {[%clk
0:00:07.4]} 42. Rxe3 {[%clk 0:00:04.1]} 42... Rxe3 {[%clk 0:00:07.9]} 43. Nh3
{[%clk 0:00:04.5]} 43... Re2+ {[%clk 0:00:07.4]} 44. Kg1 {[%clk 0:00:03.7]}
44... Re8 {[%clk 0:00:06.2]} 45. Ng5 {[%clk 0:00:02.7]} 45... Qd5 {[%clk
0:00:05.9]} 46. Qf6 {[%clk 0:00:02.5]} 46... Rf8 {[%clk 0:00:04]} 47. Qc3 {[%clk
0:00:01.6]} 47... Qc5+ {[%clk 0:00:03.8]} 48. Qxc5 {[%clk 0:00:01.4]} 48... Rxc5
{[%clk 0:00:04.6]} 49. Ne6 {[%clk 0:00:01.5]} 49... Re5 {[%clk 0:00:05.3]} 50.
Nxf8 {[%clk 0:00:01.6]} 50... Kxf8 {[%clk 0:00:06.2]} 51. Rb1 {[%clk 0:00:01.1]}
51... b5 {[%clk 0:00:06.5]} 52. Rxb5 {[%clk 0:00:01.9]} 52... Rxb5 {[%clk
0:00:06.5]} 53. Kf2 {[%clk 0:00:02.8]} 53... Kf7 {[%clk 0:00:07]} 0-1